[Event "January 9 Early 2024"]
[Site "https://www.chess.com"]
[Date "2024.01.11"]
[Round "7"]
[White "Latreche, Khadidja"]
[Black "Delgado Kuffo, Andres"]
[Result "1-0"]
[Board "84"]
[TimeControl "180+1"]
[WhiteFideId "7901780"]
[BlackFideId "3600475"]
[WhiteElo "2151"]
[BlackElo "2290"]
[WhiteTeam "ALG"]
[BlackTeam "ECU"]
[WhiteClock "0:00:31"]
[BlackClock "0:00:32"]

1. e4 {[%clk 0:03:00]}  e6 {[%clk 0:02:59]} 2. Qe2 {[%clk 0:03:00]}  c5 {[%clk 0:02:57]} 3. Nf3 {[%clk 0:02:59]}  Nc6 {[%clk 0:02:57]} 4. g3 {[%clk 0:02:59]}  g6 {[%clk 0:02:58]} 5. Bg2 {[%clk 0:02:59]}  Bg7 {[%clk 0:02:58]} 6. c3 {[%clk 0:03:00]}  Nge7 {[%clk 0:02:54]} 7. O-O {[%clk 0:03:00]}  O-O {[%clk 0:02:52]} 8. d3 {[%clk 0:03:00]}  b5 {[%clk 0:02:51]} 9. Na3 {[%clk 0:03:00]}  b4 {[%clk 0:02:47]} 10. cxb4 {[%clk 0:02:47]}  Nxb4 {[%clk 0:02:46]} 11. Be3 {[%clk 0:02:42]}  d6 {[%clk 0:02:41]} 12. Nc4 {[%clk 0:02:31]}  Ba6 {[%clk 0:02:37]} 13. a3 {[%clk 0:02:26]}  Nxd3 {[%clk 0:02:35]} 14. Qxd3 {[%clk 0:02:17]}  d5 {[%clk 0:02:35]} 15. exd5 {[%clk 0:02:13]}  exd5 {[%clk 0:02:35]} 16. b3 {[%clk 0:01:52]}  Rc8 {[%clk 0:01:32]} 17. Rac1 {[%clk 0:01:35]}  dxc4 {[%clk 0:01:28]} 18. Qxd8 {[%clk 0:01:25]}  Rfxd8 {[%clk 0:01:28]} 19. bxc4 {[%clk 0:01:24]}  Bb2 {[%clk 0:01:25]} 20. Rc2 {[%clk 0:01:22]}  Bd4 {[%clk 0:01:11]} 21. Bg5 {[%clk 0:01:11]}  Rc7 {[%clk 0:00:58]} 22. Re1 {[%clk 0:01:10]}  Rdd7 {[%clk 0:00:53]} 23. Bh3 {[%clk 0:00:55]}  f5 {[%clk 0:00:49]} 24. Re6 {[%clk 0:00:42]}  Nc6 {[%clk 0:00:35]} 25. Bh6 {[%clk 0:00:34]}  Kf7 {[%clk 0:00:32]} 26. Ng5+ {[%clk 0:00:31]} 1-0

[Event "January 9 Early 2024"]
[Site "https://www.chess.com"]
[Date "2024.01.11"]
[Round "7"]
[White "Gutierrez Olivares, Daniel"]
[Black "Wagner, Dennis"]
[Result "0-1"]
[Board "85"]
[TimeControl "180+1"]
[WhiteFideId "2264005"]
[BlackFideId "24650684"]
[WhiteElo "2477"]
[BlackElo "2739"]
[WhiteTeam "ESP"]
[BlackTeam "GER"]
[WhiteClock "0:00:04"]
[BlackClock "0:01:06"]

1. Nf3 {[%clk 0:03:00]}  d5 {[%clk 0:02:57]} 2. c4 {[%clk 0:03:01]}  d4 {[%clk 0:02:56]} 3. e3 {[%clk 0:03:00]}  Nc6 {[%clk 0:02:53]} 4. d3 {[%clk 0:02:37]}  e5 {[%clk 0:02:52]} 5. e4 {[%clk 0:02:31]}  Bb4+ {[%clk 0:02:51]} 6. Nbd2 {[%clk 0:02:30]}  a5 {[%clk 0:02:51]} 7. Be2 {[%clk 0:02:31]}  Nge7 {[%clk 0:02:44]} 8. O-O {[%clk 0:02:28]}  Ng6 {[%clk 0:02:44]} 9. g3 {[%clk 0:02:18]}  Bh3 {[%clk 0:02:37]} 10. Re1 {[%clk 0:02:18]}  h5 {[%clk 0:02:36]} 11. a3 {[%clk 0:02:15]}  Bd6 {[%clk 0:02:35]} 12. Bf1 {[%clk 0:02:15]}  Qd7 {[%clk 0:02:35]} 13. Bxh3 {[%clk 0:02:01]}  Qxh3 {[%clk 0:02:36]} 14. Ng5 {[%clk 0:02:02]}  Qg4 {[%clk 0:02:29]} 15. Qxg4 {[%clk 0:01:24]}  hxg4 {[%clk 0:02:29]} 16. f3 {[%clk 0:01:23]}  Be7 {[%clk 0:01:57]} 17. Nf1 {[%clk 0:01:16]}  Bxg5 {[%clk 0:01:56]} 18. Bxg5 {[%clk 0:01:16]}  gxf3 {[%clk 0:01:57]} 19. Kf2 {[%clk 0:01:10]}  f6 {[%clk 0:01:57]} 20. Bd2 {[%clk 0:01:10]}  a4 {[%clk 0:01:57]} 21. Kxf3 {[%clk 0:01:08]}  Kd7 {[%clk 0:01:57]} 22. Bb4 {[%clk 0:00:48]}  Rh3 {[%clk 0:01:43]} 23. Kg2 {[%clk 0:00:23]}  Rhh8 {[%clk 0:01:22]} 24. Re2 {[%clk 0:00:22]}  Nf8 {[%clk 0:01:20]} 25. Bxf8 {[%clk 0:00:19]}  Rhxf8 {[%clk 0:01:18]} 26. h4 {[%clk 0:00:15]}  Na5 {[%clk 0:01:19]} 27. g4 {[%clk 0:00:11]}  Nb3 {[%clk 0:01:17]} 28. Rd1 {[%clk 0:00:10]}  Ra6 {[%clk 0:01:17]} 29. Ng3 {[%clk 0:00:09]}  Ke6 {[%clk 0:01:12]} 30. h5 {[%clk 0:00:08]}  Rb6 {[%clk 0:01:10]} 31. Nf5 {[%clk 0:00:07]}  Kf7 {[%clk 0:01:10]} 32. Rf2 {[%clk 0:00:05]}  Nc5 {[%clk 0:01:10]} 33. Nh4 {[%clk 0:00:04]}  Rb3 {[%clk 0:01:08]} 34. Ng6 {[%clk 0:00:04]}  Re8 {[%clk 0:01:06]} 0-1

[Event "January 9 Early 2024"]
[Site "https://www.chess.com"]
[Date "2024.01.11"]
[Round "7"]
[White "Bueno, Alfeu Junior Varela"]
[Black "De Sousa, Daniel Aguiar"]
[Result "1-0"]
[Board "87"]
[TimeControl "180+1"]
[WhiteFideId "2108879"]
[BlackFideId "44736797"]
[WhiteElo "2406"]
[BlackElo "2055"]
[WhiteTeam "BRA"]
[BlackTeam "BRA"]
[WhiteClock "0:00:41"]
[BlackClock "0:00:13"]

1. e4 {[%clk 0:02:56]}  c5 {[%clk 0:02:57]} 2. Nc3 {[%clk 0:02:53]}  Nc6 {[%clk 0:02:57]} 3. f4 {[%clk 0:02:48]}  d6 {[%clk 0:02:54]} 4. Bb5 {[%clk 0:02:46]}  Bd7 {[%clk 0:02:49]} 5. Nf3 {[%clk 0:02:46]}  a6 {[%clk 0:02:49]} 6. Bxc6 {[%clk 0:02:45]}  Bxc6 {[%clk 0:02:50]} 7. d3 {[%clk 0:02:46]}  e6 {[%clk 0:02:48]} 8. O-O {[%clk 0:02:40]}  b5 {[%clk 0:02:46]} 9. Be3 {[%clk 0:02:35]}  g6 {[%clk 0:02:45]} 10. f5 {[%clk 0:02:35]}  exf5 {[%clk 0:02:35]} 11. exf5 {[%clk 0:02:35]}  Bg7 {[%clk 0:02:19]} 12. Ng5 {[%clk 0:02:16]}  Nf6 {[%clk 0:01:56]} 13. Qe1 {[%clk 0:02:05]}  O-O {[%clk 0:01:54]} 14. fxg6 {[%clk 0:02:05]}  hxg6 {[%clk 0:01:52]} 15. Qh4 {[%clk 0:02:03]}  Nh5 {[%clk 0:01:44]} 16. g4 {[%clk 0:02:01]}  f6 {[%clk 0:01:37]} 17. Nf3 {[%clk 0:01:47]}  Re8 {[%clk 0:00:56]} 18. Bd2 {[%clk 0:01:17]}  b4 {[%clk 0:00:47]} 19. Nd1 {[%clk 0:01:14]}  Re2 {[%clk 0:00:44]} 20. gxh5 {[%clk 0:01:08]}  Bxf3 {[%clk 0:00:41]} 21. Rxf3 {[%clk 0:01:09]}  Rxd2 {[%clk 0:00:41]} 22. hxg6 {[%clk 0:01:09]}  Qd7 {[%clk 0:00:33]} 23. Ne3 {[%clk 0:01:03]}  d5 {[%clk 0:00:24]} 24. Raf1 {[%clk 0:00:58]}  Bh8 {[%clk 0:00:18]} 25. Nxd5 {[%clk 0:00:49]}  Qg7 {[%clk 0:00:12]} 26. Nxf6+ {[%clk 0:00:41]}  Kf8 {[%clk 0:00:13]} 1-0

[Event "January 9 Early 2024"]
[Site "https://www.chess.com"]
[Date "2024.01.11"]
[Round "7"]
[White "Llorente Zaro, Alfonso"]
[Black "Balla, Tamas-Kristof"]
[Result "1-0"]
[Board "89"]
[TimeControl "180+1"]
[WhiteFideId "2254131"]
[BlackFideId "1208497"]
[WhiteElo "2698"]
[BlackElo "2472"]
[WhiteTeam "ESP"]
[BlackTeam "ROU"]
[WhiteClock "0:01:08"]
[BlackClock "0:00:11"]

1. e4 {[%clk 0:02:54]}  c5 {[%clk 0:03:00]} 2. Nf3 {[%clk 0:02:46]}  Nc6 {[%clk 0:03:00]} 3. d4 {[%clk 0:02:40]}  cxd4 {[%clk 0:03:01]} 4. Nxd4 {[%clk 0:02:39]}  e5 {[%clk 0:03:01]} 5. Nb5 {[%clk 0:02:39]}  d6 {[%clk 0:02:59]} 6. N1c3 {[%clk 0:02:38]}  a6 {[%clk 0:02:59]} 7. Na3 {[%clk 0:02:38]}  b5 {[%clk 0:03:00]} 8. Nd5 {[%clk 0:02:39]}  Nge7 {[%clk 0:02:59]} 9. c4 {[%clk 0:02:38]}  Nxd5 {[%clk 0:03:00]} 10. cxd5 {[%clk 0:02:38]}  Nd4 {[%clk 0:03:00]} 11. Be3 {[%clk 0:02:39]}  g6 {[%clk 0:02:59]} 12. Bxd4 {[%clk 0:02:37]}  exd4 {[%clk 0:02:59]} 13. Bd3 {[%clk 0:02:38]}  Bg7 {[%clk 0:02:56]} 14. O-O {[%clk 0:02:38]}  O-O {[%clk 0:02:56]} 15. Nc2 {[%clk 0:02:39]}  f5 {[%clk 0:02:53]} 16. exf5 {[%clk 0:02:34]}  Bxf5 {[%clk 0:02:52]} 17. Qd2 {[%clk 0:02:26]}  Rc8 {[%clk 0:02:44]} 18. Nb4 {[%clk 0:02:24]}  Rc5 {[%clk 0:02:02]} 19. Nxa6 {[%clk 0:02:17]}  Rxd5 {[%clk 0:02:01]} 20. Rac1 {[%clk 0:02:16]}  Bxd3 {[%clk 0:01:56]} 21. Qxd3 {[%clk 0:02:17]}  Kh8 {[%clk 0:01:57]} 22. Nc7 {[%clk 0:02:14]}  Re5 {[%clk 0:01:47]} 23. Nxb5 {[%clk 0:02:12]}  Qg5 {[%clk 0:01:46]} 24. a4 {[%clk 0:02:11]}  Ref5 {[%clk 0:01:43]} 25. Rcd1 {[%clk 0:01:58]}  Be5 {[%clk 0:01:38]} 26. Nxd4 {[%clk 0:01:50]}  Qh5 {[%clk 0:01:19]} 27. g3 {[%clk 0:01:43]}  R5f6 {[%clk 0:00:56]} 28. f4 {[%clk 0:01:42]}  Bxf4 {[%clk 0:00:50]} 29. gxf4 {[%clk 0:01:36]}  Rxf4 {[%clk 0:00:51]} 30. Rxf4 {[%clk 0:01:21]}  Rxf4 {[%clk 0:00:52]} 31. Rf1 {[%clk 0:01:21]}  Qg4+ {[%clk 0:00:49]} 32. Kh1 {[%clk 0:01:18]}  Rxd4 {[%clk 0:00:47]} 33. Qe3 {[%clk 0:01:13]}  Qe4+ {[%clk 0:00:11]} 34. Qxe4 {[%clk 0:01:13]}  Rxe4 {[%clk 0:00:12]} 35. Ra1 {[%clk 0:01:11]}  Rb4 {[%clk 0:00:12]} 36. Ra2 {[%clk 0:01:10]}  d5 {[%clk 0:00:11]} 37. a5 {[%clk 0:01:11]}  Rb8 {[%clk 0:00:10]} 38. a6 {[%clk 0:01:09]}  Kg7 {[%clk 0:00:10]} 39. b4 {[%clk 0:01:08]}  Ra8 {[%clk 0:00:11]} 40. b5 {[%clk 0:01:07]}  Kf7 {[%clk 0:00:11]} 41. b6 {[%clk 0:01:08]} 1-0

[Event "January 9 Early 2024"]
[Site "https://www.chess.com"]
[Date "2024.01.11"]
[Round "7"]
[White "Rangel, Daniel"]
[Black "Eggleston, Thomas A"]
[Result "1-0"]
[Board "90"]
[TimeControl "180+1"]
[WhiteFideId "2124475"]
[BlackFideId "412139"]
[WhiteElo "2501"]
[BlackElo "2260"]
[WhiteTeam "BRA"]
[BlackTeam "ENG"]
[WhiteClock "0:00:58"]
[BlackClock "0:00:01"]

1. c4 {[%clk 0:03:00]}  g6 {[%clk 0:02:56]} 2. g3 {[%clk 0:03:01]}  Bg7 {[%clk 0:02:56]} 3. Bg2 {[%clk 0:03:01]}  c5 {[%clk 0:02:56]} 4. Nc3 {[%clk 0:03:02]}  Nc6 {[%clk 0:02:55]} 5. e3 {[%clk 0:03:02]}  e5 {[%clk 0:02:52]} 6. Nge2 {[%clk 0:03:03]}  d6 {[%clk 0:02:52]} 7. O-O {[%clk 0:03:04]}  Nge7 {[%clk 0:02:52]} 8. Nd5 {[%clk 0:03:04]}  Nxd5 {[%clk 0:02:51]} 9. cxd5 {[%clk 0:03:04]}  Ne7 {[%clk 0:02:52]} 10. d4 {[%clk 0:03:02]}  cxd4 {[%clk 0:02:51]} 11. exd4 {[%clk 0:03:03]}  O-O {[%clk 0:02:39]} 12. dxe5 {[%clk 0:02:59]}  Bxe5 {[%clk 0:02:22]} 13. Bh6 {[%clk 0:02:51]}  Re8 {[%clk 0:02:21]} 14. Nc3 {[%clk 0:02:47]}  Nf5 {[%clk 0:02:20]} 15. Bd2 {[%clk 0:02:45]}  h5 {[%clk 0:02:14]} 16. Ne4 {[%clk 0:02:38]}  Bxb2 {[%clk 0:02:13]} 17. Bg5 {[%clk 0:02:34]}  f6 {[%clk 0:02:07]} 18. Bf4 {[%clk 0:02:32]}  Be5 {[%clk 0:01:50]} 19. Bd2 {[%clk 0:02:21]}  Bd7 {[%clk 0:01:48]} 20. Bb4 {[%clk 0:02:15]}  Bb5 {[%clk 0:01:38]} 21. Re1 {[%clk 0:02:12]}  Rc8 {[%clk 0:01:27]} 22. Rb1 {[%clk 0:02:10]}  Bc4 {[%clk 0:01:20]} 23. h3 {[%clk 0:01:58]}  Bxa2 {[%clk 0:01:14]} 24. Ra1 {[%clk 0:01:54]}  Bxa1 {[%clk 0:01:02]} 25. Qxa1 {[%clk 0:01:51]}  Bc4 {[%clk 0:00:48]} 26. Nxf6+ {[%clk 0:01:50]}  Kf7 {[%clk 0:00:27]} 27. Nxe8 {[%clk 0:01:35]}  a5 {[%clk 0:00:13]} 28. Bxd6 {[%clk 0:01:29]}  Qg5 {[%clk 0:00:06]} 29. Bf4 {[%clk 0:01:27]}  Qd8 {[%clk 0:00:06]} 30. g4 {[%clk 0:01:22]}  hxg4 {[%clk 0:00:05]} 31. hxg4 {[%clk 0:01:23]}  Qd7 {[%clk 0:00:02]} 32. gxf5 {[%clk 0:01:13]}  Rxe8 {[%clk 0:00:01]} 33. fxg6+ {[%clk 0:01:14]}  Kxg6 {[%clk 0:00:01]} 34. Qb1+ {[%clk 0:00:58]} 1-0

[Event "January 9 Early 2024"]
[Site "https://www.chess.com"]
[Date "2024.01.11"]
[Round "7"]
[White "Banzea, Alexandru-Bogdan"]
[Black "Tikhonov, Viacheslav"]
[Result "1-0"]
[Board "92"]
[TimeControl "180+1"]
[WhiteFideId "1232622"]
[BlackFideId "44196407"]
[WhiteElo "2715"]
[BlackElo "2536"]
[WhiteTeam "ROU"]
[BlackTeam "RUS"]
[WhiteClock "0:01:04"]
[BlackClock "0:00:01"]

1. d4 {[%clk 0:03:00]}  Nf6 {[%clk 0:02:58]} 2. Nc3 {[%clk 0:02:58]}  d5 {[%clk 0:02:58]} 3. Bf4 {[%clk 0:02:55]}  g6 {[%clk 0:02:58]} 4. e3 {[%clk 0:02:55]}  Bg7 {[%clk 0:02:58]} 5. h4 {[%clk 0:02:56]}  h6 {[%clk 0:02:58]} 6. Nf3 {[%clk 0:02:55]}  c6 {[%clk 0:02:58]} 7. Ne5 {[%clk 0:02:55]}  Nbd7 {[%clk 0:02:55]} 8. Bd3 {[%clk 0:02:53]}  Nxe5 {[%clk 0:02:52]} 9. Bxe5 {[%clk 0:02:54]}  O-O {[%clk 0:02:44]} 10. Qf3 {[%clk 0:02:37]}  Ng4 {[%clk 0:02:34]} 11. Bxg7 {[%clk 0:02:34]}  Kxg7 {[%clk 0:02:34]} 12. h5 {[%clk 0:02:09]}  e5 {[%clk 0:02:09]} 13. dxe5 {[%clk 0:02:05]}  Nxe5 {[%clk 0:02:08]} 14. Qf4 {[%clk 0:02:05]}  Nxd3+ {[%clk 0:02:00]} 15. cxd3 {[%clk 0:02:06]}  g5 {[%clk 0:02:00]} 16. Qd4+ {[%clk 0:02:05]}  Qf6 {[%clk 0:01:57]} 17. Qxf6+ {[%clk 0:02:06]}  Kxf6 {[%clk 0:01:58]} 18. Kd2 {[%clk 0:02:07]}  Rd8 {[%clk 0:01:54]} 19. Ne2 {[%clk 0:02:07]}  Be6 {[%clk 0:01:50]} 20. Ng3 {[%clk 0:02:07]}  Rac8 {[%clk 0:01:48]} 21. b4 {[%clk 0:02:07]}  a5 {[%clk 0:01:41]} 22. bxa5 {[%clk 0:02:05]}  Ra8 {[%clk 0:01:41]} 23. Rhb1 {[%clk 0:02:06]}  Ra7 {[%clk 0:00:29]} 24. a6 {[%clk 0:02:06]}  Rxa6 {[%clk 0:00:22]} 25. Rxb7 {[%clk 0:02:05]}  Rda8 {[%clk 0:00:23]} 26. Rb2 {[%clk 0:01:56]}  g4 {[%clk 0:00:21]} 27. Ne2 {[%clk 0:01:55]}  Kg5 {[%clk 0:00:17]} 28. Nf4 {[%clk 0:01:56]}  Ra3 {[%clk 0:00:13]} 29. d4 {[%clk 0:01:56]}  R8a6 {[%clk 0:00:12]} 30. g3 {[%clk 0:01:56]}  Kf5 {[%clk 0:00:12]} 31. Nd3 {[%clk 0:01:33]}  Kg5 {[%clk 0:00:09]} 32. Nc5 {[%clk 0:01:26]}  R6a5 {[%clk 0:00:07]} 33. e4 {[%clk 0:01:04]}  dxe4 {[%clk 0:00:05]} 34. Nxe4+ {[%clk 0:01:05]}  Kxh5 {[%clk 0:00:03]} 35. Nc3 {[%clk 0:01:05]}  Kg6 {[%clk 0:00:02]} 36. Rb6 {[%clk 0:01:03]}  c5 {[%clk 0:00:01]} 37. d5 {[%clk 0:01:04]} 1-0

[Event "January 9 Early 2024"]
[Site "https://www.chess.com"]
[Date "2024.01.11"]
[Round "7"]
[White "Timerkhanov, Alexander"]
[Black "Delorme, Axel"]
[Result "0-1"]
[Board "94"]
[TimeControl "180+1"]
[WhiteFideId "24177938"]
[BlackFideId "632023"]
[WhiteElo "2655"]
[BlackElo "2519"]
[WhiteTeam "RUS"]
[BlackTeam "FRA"]
[WhiteClock "0:00:14"]
[BlackClock "0:01:17"]

1. d4 {[%clk 0:03:00]}  d5 {[%clk 0:02:59]} 2. c4 {[%clk 0:02:58]}  e6 {[%clk 0:03:00]} 3. Nc3 {[%clk 0:02:57]}  c5 {[%clk 0:03:00]} 4. cxd5 {[%clk 0:02:56]}  exd5 {[%clk 0:03:01]} 5. Nf3 {[%clk 0:02:53]}  Nc6 {[%clk 0:03:02]} 6. g3 {[%clk 0:02:53]}  Nf6 {[%clk 0:03:02]} 7. Bg2 {[%clk 0:02:53]}  cxd4 {[%clk 0:03:03]} 8. Nxd4 {[%clk 0:02:52]}  Bc5 {[%clk 0:03:03]} 9. Nb3 {[%clk 0:02:51]}  Bb6 {[%clk 0:03:03]} 10. O-O {[%clk 0:02:49]}  d4 {[%clk 0:03:03]} 11. Na4 {[%clk 0:02:50]}  O-O {[%clk 0:03:04]} 12. Nxb6 {[%clk 0:02:49]}  axb6 {[%clk 0:03:03]} 13. Bg5 {[%clk 0:02:50]}  Re8 {[%clk 0:03:02]} 14. e3 {[%clk 0:02:48]}  d3 {[%clk 0:02:55]} 15. Qd2 {[%clk 0:02:43]}  h6 {[%clk 0:02:48]} 16. Bxf6 {[%clk 0:02:42]}  Qxf6 {[%clk 0:02:49]} 17. Qxd3 {[%clk 0:02:14]}  Qxb2 {[%clk 0:02:38]} 18. Qd2 {[%clk 0:02:05]}  Qxd2 {[%clk 0:02:24]} 19. Nxd2 {[%clk 0:02:06]}  Be6 {[%clk 0:02:25]} 20. a3 {[%clk 0:02:05]}  Red8 {[%clk 0:02:20]} 21. Ne4 {[%clk 0:02:02]}  Rd3 {[%clk 0:02:17]} 22. Rfb1 {[%clk 0:02:00]}  Rdxa3 {[%clk 0:02:15]} 23. Rxa3 {[%clk 0:01:58]}  Rxa3 {[%clk 0:02:16]} 24. Nd6 {[%clk 0:01:58]}  Na5 {[%clk 0:02:00]} 25. Nxb7 {[%clk 0:01:54]}  Nxb7 {[%clk 0:02:00]} 26. Bxb7 {[%clk 0:01:55]}  Rb3 {[%clk 0:01:58]} 27. Rxb3 {[%clk 0:01:49]}  Bxb3 {[%clk 0:01:59]} 28. Kf1 {[%clk 0:01:46]}  Kf8 {[%clk 0:01:58]} 29. Ke1 {[%clk 0:01:46]}  Ke7 {[%clk 0:01:57]} 30. Kd2 {[%clk 0:01:47]}  Kd6 {[%clk 0:01:55]} 31. Kc3 {[%clk 0:01:48]}  Bd5 {[%clk 0:01:54]} 32. Ba6 {[%clk 0:01:36]}  Kc5 {[%clk 0:01:54]} 33. Bd3 {[%clk 0:01:28]}  b5 {[%clk 0:01:53]} 34. e4 {[%clk 0:01:29]}  b4+ {[%clk 0:01:52]} 35. Kd2 {[%clk 0:01:29]}  Be6 {[%clk 0:01:46]} 36. Ke3 {[%clk 0:01:21]}  b3 {[%clk 0:01:43]} 37. f4 {[%clk 0:01:17]}  f6 {[%clk 0:01:42]} 38. h4 {[%clk 0:01:07]}  b2 {[%clk 0:01:38]} 39. Bb1 {[%clk 0:01:07]}  Kc4 {[%clk 0:01:35]} 40. e5 {[%clk 0:01:03]}  fxe5 {[%clk 0:01:34]} 41. fxe5 {[%clk 0:01:04]}  g5 {[%clk 0:01:26]} 42. hxg5 {[%clk 0:01:04]}  hxg5 {[%clk 0:01:27]} 43. Kd2 {[%clk 0:01:02]}  Kd4 {[%clk 0:01:20]} 44. Ke2 {[%clk 0:00:13]}  Kxe5 {[%clk 0:01:18]} 45. Ke3 {[%clk 0:00:14]}  Bf5 {[%clk 0:01:17]} 0-1

[Event "January 9 Early 2024"]
[Site "https://www.chess.com"]
[Date "2024.01.11"]
[Round "7"]
[White "Agrest, Inna"]
[Black "Bournel, Antoine"]
[Result "0-1"]
[Board "101"]
[TimeControl "180+1"]
[WhiteFideId "1708830"]
[BlackFideId "26093553"]
[WhiteElo "2366"]
[BlackElo "2550"]
[WhiteTeam "SWE"]
[BlackTeam "FRA"]
[WhiteClock "0:00:10"]
[BlackClock "0:00:29"]

1. e4 {[%clk 0:03:00]}  c5 {[%clk 0:02:56]} 2. Nf3 {[%clk 0:03:00]}  e6 {[%clk 0:02:55]} 3. d4 {[%clk 0:03:00]}  cxd4 {[%clk 0:02:55]} 4. Nxd4 {[%clk 0:03:01]}  a6 {[%clk 0:02:56]} 5. Bd3 {[%clk 0:03:00]}  Bc5 {[%clk 0:02:54]} 6. Nb3 {[%clk 0:03:00]}  Ba7 {[%clk 0:02:54]} 7. Qg4 {[%clk 0:02:54]}  Nf6 {[%clk 0:02:53]} 8. Qg3 {[%clk 0:02:52]}  Nc6 {[%clk 0:02:49]} 9. Nc3 {[%clk 0:02:52]}  Bb8 {[%clk 0:02:42]} 10. Qxg7 {[%clk 0:02:38]}  Rg8 {[%clk 0:02:41]} 11. Qh6 {[%clk 0:02:37]}  Rxg2 {[%clk 0:02:23]} 12. Qh3 {[%clk 0:01:58]}  Rg8 {[%clk 0:02:11]} 13. Bd2 {[%clk 0:01:57]}  d5 {[%clk 0:01:50]} 14. exd5 {[%clk 0:01:35]}  exd5 {[%clk 0:01:49]} 15. Qe3+ {[%clk 0:01:30]}  Be6 {[%clk 0:01:47]} 16. Ne2 {[%clk 0:01:20]}  Ng4 {[%clk 0:01:43]} 17. Qh3 {[%clk 0:00:38]}  Qf6 {[%clk 0:01:21]} 18. Qf1 {[%clk 0:00:22]}  Nxh2 {[%clk 0:01:03]} 19. Rxh2 {[%clk 0:00:22]}  Bxh2 {[%clk 0:01:04]} 20. O-O-O {[%clk 0:00:22]}  O-O-O {[%clk 0:00:59]} 21. Nc5 {[%clk 0:00:21]}  Bd6 {[%clk 0:00:56]} 22. Nxe6 {[%clk 0:00:16]}  fxe6 {[%clk 0:00:57]} 23. Bxh7 {[%clk 0:00:15]}  Rh8 {[%clk 0:00:48]} 24. Bd3 {[%clk 0:00:15]}  Ne5 {[%clk 0:00:43]} 25. Nc3 {[%clk 0:00:14]}  Nxd3+ {[%clk 0:00:34]} 26. Qxd3 {[%clk 0:00:14]}  Qxf2 {[%clk 0:00:34]} 27. Na4 {[%clk 0:00:11]}  Kb8 {[%clk 0:00:31]} 28. Be3 {[%clk 0:00:10]}  Bf4 {[%clk 0:00:29]} 0-1

[Event "January 9 Early 2024"]
[Site "https://www.chess.com"]
[Date "2024.01.11"]
[Round "7"]
[White "Glashausser, Sho"]
[Black "Filipovic, Slobodan J"]
[Result "1-0"]
[Board "102"]
[TimeControl "180+1"]
[WhiteFideId "30908329"]
[BlackFideId "939633"]
[WhiteElo "2173"]
[BlackElo "2372"]
[WhiteTeam "USA"]
[BlackTeam "SRB"]
[WhiteClock "0:00:16"]
[BlackClock "0:00:13"]

1. Nf3 {[%clk 0:03:00]}  c5 {[%clk 0:02:54]} 2. Nc3 {[%clk 0:02:59]}  Nc6 {[%clk 0:02:50]} 3. d4 {[%clk 0:02:56]}  cxd4 {[%clk 0:02:46]} 4. Nxd4 {[%clk 0:02:57]}  e5 {[%clk 0:02:46]} 5. Ndb5 {[%clk 0:02:56]}  a6 {[%clk 0:02:35]} 6. Nd6+ {[%clk 0:02:52]}  Bxd6 {[%clk 0:02:34]} 7. Qxd6 {[%clk 0:02:53]}  Qf6 {[%clk 0:02:34]} 8. Qd1 {[%clk 0:02:24]}  Nge7 {[%clk 0:01:57]} 9. Ne4 {[%clk 0:02:23]}  Qg6 {[%clk 0:01:55]} 10. Nd6+ {[%clk 0:02:20]}  Kf8 {[%clk 0:01:55]} 11. e4 {[%clk 0:01:53]}  Nd4 {[%clk 0:01:04]} 12. Nc4 {[%clk 0:01:52]}  Qxe4+ {[%clk 0:01:02]} 13. Ne3 {[%clk 0:01:51]}  d5 {[%clk 0:00:57]} 14. Bd3 {[%clk 0:01:48]}  Qh4 {[%clk 0:00:41]} 15. O-O {[%clk 0:01:33]}  Be6 {[%clk 0:00:26]} 16. b3 {[%clk 0:01:22]}  Nec6 {[%clk 0:00:21]} 17. Ba3+ {[%clk 0:01:21]}  Kg8 {[%clk 0:00:21]} 18. c3 {[%clk 0:01:17]}  Rc8 {[%clk 0:00:19]} 19. cxd4 {[%clk 0:01:14]}  Nxd4 {[%clk 0:00:19]} 20. Rc1 {[%clk 0:01:09]}  Rxc1 {[%clk 0:00:17]} 21. Qxc1 {[%clk 0:01:10]}  h5 {[%clk 0:00:18]} 22. Qc7 {[%clk 0:00:57]}  e4 {[%clk 0:00:12]} 23. Bb1 {[%clk 0:00:38]}  Qg5 {[%clk 0:00:12]} 24. Kh1 {[%clk 0:00:37]}  Kh7 {[%clk 0:00:13]} 25. Bb2 {[%clk 0:00:30]}  Nf5 {[%clk 0:00:12]} 26. Nxf5 {[%clk 0:00:25]}  Qxf5 {[%clk 0:00:13]} 27. Qe5 {[%clk 0:00:16]}  Rc8 {[%clk 0:00:13]} 28. Qxg7# {[%clk 0:00:16]} 1-0

[Event "January 9 Early 2024"]
[Site "https://www.chess.com"]
[Date "2024.01.11"]
[Round "7"]
[White "Mikhailovsky, Vladimir"]
[Black "Mammadzada, Gunay"]
[Result "0-1"]
[Board "104"]
[TimeControl "180+1"]
[WhiteFideId "34105414"]
[BlackFideId "13403729"]
[WhiteElo "2809"]
[BlackElo "2538"]
[WhiteTeam "RUS"]
[BlackTeam "AZE"]
[WhiteClock "0:00:02"]
[BlackClock "0:00:40"]

1. e4 {[%clk 0:02:57]}  c5 {[%clk 0:02:53]} 2. d4 {[%clk 0:02:57]}  cxd4 {[%clk 0:02:51]} 3. c3 {[%clk 0:02:58]}  dxc3 {[%clk 0:02:50]} 4. Nxc3 {[%clk 0:02:59]}  d6 {[%clk 0:02:49]} 5. Nf3 {[%clk 0:02:59]}  Nc6 {[%clk 0:02:48]} 6. Bc4 {[%clk 0:02:59]}  a6 {[%clk 0:02:47]} 7. O-O {[%clk 0:02:58]}  e6 {[%clk 0:02:41]} 8. Qe2 {[%clk 0:02:55]}  Qc7 {[%clk 0:02:38]} 9. Bf4 {[%clk 0:02:54]}  Nf6 {[%clk 0:02:39]} 10. Rac1 {[%clk 0:02:54]}  Be7 {[%clk 0:02:39]} 11. e5 {[%clk 0:02:30]}  Nh5 {[%clk 0:02:17]} 12. exd6 {[%clk 0:01:47]}  Nxf4 {[%clk 0:02:12]} 13. dxc7 {[%clk 0:01:48]}  Nxe2+ {[%clk 0:02:12]} 14. Bxe2 {[%clk 0:01:49]}  Bd6 {[%clk 0:02:06]} 15. Na4 {[%clk 0:01:37]}  Bxc7 {[%clk 0:02:06]} 16. Nc5 {[%clk 0:01:38]}  Bf4 {[%clk 0:01:59]} 17. Rc4 {[%clk 0:01:36]}  Bd6 {[%clk 0:01:52]} 18. Rd1 {[%clk 0:01:23]}  Ke7 {[%clk 0:01:45]} 19. Ng5 {[%clk 0:01:09]}  Ne5 {[%clk 0:01:16]} 20. Rcc1 {[%clk 0:00:42]}  b6 {[%clk 0:01:07]} 21. Nce4 {[%clk 0:00:31]}  Bb8 {[%clk 0:01:04]} 22. f4 {[%clk 0:00:31]}  Ng6 {[%clk 0:01:04]} 23. Bf3 {[%clk 0:00:31]}  Ra7 {[%clk 0:00:59]} 24. Rc6 {[%clk 0:00:20]}  Rd7 {[%clk 0:00:55]} 25. Rdc1 {[%clk 0:00:16]}  Bb7 {[%clk 0:00:54]} 26. R6c2 {[%clk 0:00:05]}  Bxf4 {[%clk 0:00:53]} 27. Rf1 {[%clk 0:00:04]}  h6 {[%clk 0:00:48]} 28. Nxf7 {[%clk 0:00:03]}  Kxf7 {[%clk 0:00:44]} 29. Bh5 {[%clk 0:00:04]}  Bxe4 {[%clk 0:00:42]} 30. Rxf4+ {[%clk 0:00:04]}  Bf5 {[%clk 0:00:42]} 31. g4 {[%clk 0:00:02]}  Ke7 {[%clk 0:00:40]} 0-1